[Event "Early-Titled-Tuesday-Blitz-April-02-2024"]
[Site "Chess.com"]
[Date "2024.04.02"]
[Round "6"]
[White "Lukianoo"]
[Black "SaiAgni_98"]
[Result "1-0"]
[WhiteElo "2820"]
[BlackElo "2528"]
[TimeControl "180+1"]
[EndTime "9:06:03 PDT"]
[Termination "Lukianoo won by resignation"]

1. e4 {[%clk 0:03:00.9]} 1... d6 {[%clk 0:02:59.5]} 2. d4 {[%clk 0:03:00.7]}
2... Nf6 {[%clk 0:03:00.2]} 3. Nc3 {[%clk 0:03:00.7]} 3... Nbd7 {[%clk
0:03:00.7]} 4. Nf3 {[%clk 0:03:01.1]} 4... e5 {[%clk 0:03:01.1]} 5. g4 {[%clk
0:03:01.2]} 5... Nxg4 {[%clk 0:02:48.8]} 6. Rg1 {[%clk 0:03:00.4]} 6... Ngf6
{[%clk 0:02:49]} 7. Bc4 {[%clk 0:02:59.9]} 7... h6 {[%clk 0:02:49.2]} 8. Be3
{[%clk 0:02:59.6]} 8... c6 {[%clk 0:02:49.3]} 9. Qd3 {[%clk 0:02:54.6]} 9... b5
{[%clk 0:02:43.4]} 10. Bb3 {[%clk 0:02:54]} 10... b4 {[%clk 0:02:44.1]} 11. Na4
{[%clk 0:02:37.1]} 11... Qa5 {[%clk 0:02:42.4]} 12. dxe5 {[%clk 0:02:20.9]}
12... Ba6 {[%clk 0:02:41.9]} 13. Qd2 {[%clk 0:01:45.8]} 13... Nxe5 {[%clk
0:02:23]} 14. Nxe5 {[%clk 0:01:42]} 14... Qxe5 {[%clk 0:01:40.6]} 15. O-O-O
{[%clk 0:01:40]} 15... Nxe4 {[%clk 0:01:30.5]} 16. Qe1 {[%clk 0:01:34]} 16...
Be7 {[%clk 0:01:12.3]} 17. Bd4 {[%clk 0:01:19.9]} 17... Qf4+ {[%clk 0:01:11.3]}
18. Kb1 {[%clk 0:01:20.1]} 18... O-O-O {[%clk 0:01:03.6]} 19. Qxb4 {[%clk
0:01:13.2]} 19... Bf6 {[%clk 0:00:33.6]} 20. Bxa7 {[%clk 0:01:03.1]} 20... Bb5
{[%clk 0:00:29.2]} 21. Be3 {[%clk 0:00:48.5]} 21... Qe5 {[%clk 0:00:19.4]} 22.
Bd4 {[%clk 0:00:48]} 22... Qf4 {[%clk 0:00:19.8]} 23. Qa5 {[%clk 0:00:29.8]}
23... Bxd4 {[%clk 0:00:17.8]} 24. Rxd4 {[%clk 0:00:30.7]} 24... Qxf2 {[%clk
0:00:13.3]} 25. Rgd1 {[%clk 0:00:29.4]} 25... Kd7 {[%clk 0:00:09]} 26. Rxe4
{[%clk 0:00:27]} 26... Rc8 {[%clk 0:00:07.7]} 27. Nb6+ {[%clk 0:00:25.8]} 1-0

[Event "Early-Titled-Tuesday-Blitz-April-02-2024"]
[Site "Chess.com"]
[Date "2024.04.02"]
[Round "6"]
[White "Aslanov_Umid"]
[Black "JosefineHeinemann"]
[Result "0-1"]
[WhiteElo "2637"]
[BlackElo "2527"]
[TimeControl "180+1"]
[EndTime "9:06:05 PDT"]
[Termination "JosefineHeinemann won by checkmate"]

1. e4 {[%clk 0:03:00.9]} 1... c5 {[%clk 0:02:55.6]} 2. Nf3 {[%clk 0:03:01.2]}
2... d6 {[%clk 0:02:55.5]} 3. d4 {[%clk 0:03:01.9]} 3... cxd4 {[%clk 0:02:56.4]}
4. Nxd4 {[%clk 0:03:02.8]} 4... Nf6 {[%clk 0:02:56.3]} 5. Nc3 {[%clk 0:03:03.6]}
5... a6 {[%clk 0:02:53.5]} 6. Bc4 {[%clk 0:03:03.6]} 6... e6 {[%clk 0:02:52.6]}
7. Bb3 {[%clk 0:03:04.3]} 7... b5 {[%clk 0:02:47.5]} 8. Bg5 {[%clk 0:03:04]}
8... Be7 {[%clk 0:02:46.9]} 9. Qf3 {[%clk 0:03:03.9]} 9... Qb6 {[%clk 0:02:46]}
10. O-O-O {[%clk 0:03:02.7]} 10... Qb7 {[%clk 0:02:30.5]} 11. Rhe1 {[%clk
0:02:45.4]} 11... O-O {[%clk 0:02:28.5]} 12. Bh4 {[%clk 0:02:35.9]} 12... Nc6
{[%clk 0:02:24.6]} 13. Nxc6 {[%clk 0:02:07.9]} 13... Qxc6 {[%clk 0:02:22.9]} 14.
g4 {[%clk 0:02:01.4]} 14... Bb7 {[%clk 0:02:20.2]} 15. g5 {[%clk 0:01:53.9]}
15... Nd7 {[%clk 0:02:19.8]} 16. Nd5 {[%clk 0:01:32.5]} 16... Bd8 {[%clk
0:01:59]} 17. Nf6+ {[%clk 0:01:17.5]} 17... gxf6 {[%clk 0:01:40.8]} 18. gxf6
{[%clk 0:01:17.7]} 18... Kh8 {[%clk 0:01:41.1]} 19. Bd5 {[%clk 0:00:22.1]} 19...
Qc7 {[%clk 0:00:44.3]} 20. Rg1 {[%clk 0:00:20.5]} 20... Ne5 {[%clk 0:00:40.6]}
21. Qh5 {[%clk 0:00:13.9]} 21... Ng6 {[%clk 0:00:33.2]} 22. Qh6 {[%clk
0:00:12.3]} 22... Rg8 {[%clk 0:00:33.3]} 23. Rxg6 {[%clk 0:00:04.7]} 23... fxg6
{[%clk 0:00:30.9]} 24. Bxe6 {[%clk 0:00:03.9]} 24... Bxe4 {[%clk 0:00:20.5]} 25.
Bxg8 {[%clk 0:00:03.5]} 25... Qxc2# {[%clk 0:00:20.1]} 0-1

[Event "Early-Titled-Tuesday-Blitz-April-02-2024"]
[Site "Chess.com"]
[Date "2024.04.02"]
[Round "6"]
[White "Hikaru"]
[Black "KuzubovYuriy"]
[Result "1/2-1/2"]
[WhiteElo "3256"]
[BlackElo "2917"]
[TimeControl "180+1"]
[EndTime "9:06:09 PDT"]
[Termination "Game drawn by repetition"]

1. d4 {[%clk 0:03:00.9]} 1... Nf6 {[%clk 0:03:00]} 2. Bg5 {[%clk 0:02:57.8]}
2... e6 {[%clk 0:02:58.2]} 3. c4 {[%clk 0:02:52.9]} 3... h6 {[%clk 0:02:57.8]}
4. Bf4 {[%clk 0:02:52.7]} 4... b6 {[%clk 0:02:50.3]} 5. Nc3 {[%clk 0:02:51.9]}
5... Bb4 {[%clk 0:02:46.7]} 6. Qb3 {[%clk 0:02:50.9]} 6... a5 {[%clk 0:02:43.3]}
7. e3 {[%clk 0:02:50.8]} 7... Bb7 {[%clk 0:02:41.4]} 8. a3 {[%clk 0:02:47.3]}
8... Bxc3+ {[%clk 0:02:36.1]} 9. Qxc3 {[%clk 0:02:47]} 9... O-O {[%clk
0:02:36.7]} 10. f3 {[%clk 0:02:46.1]} 10... d5 {[%clk 0:02:34.1]} 11. c5 {[%clk
0:02:44.7]} 11... bxc5 {[%clk 0:02:18.2]} 12. Qxc5 {[%clk 0:02:44.8]} 12... c6
{[%clk 0:02:15.1]} 13. Rb1 {[%clk 0:02:38.4]} 13... Nh5 {[%clk 0:02:00.1]} 14.
Bxb8 {[%clk 0:01:55.7]} 14... Rxb8 {[%clk 0:02:00]} 15. Qc2 {[%clk 0:01:56.4]}
15... Qb6 {[%clk 0:01:53.3]} 16. Ne2 {[%clk 0:01:50.9]} 16... Ba6 {[%clk
0:01:30.8]} 17. Nc3 {[%clk 0:01:45.9]} 17... Bxf1 {[%clk 0:01:29.7]} 18. Rxf1
{[%clk 0:01:46.8]} 18... Qc7 {[%clk 0:01:19.9]} 19. g3 {[%clk 0:01:38.2]} 19...
c5 {[%clk 0:01:18.1]} 20. dxc5 {[%clk 0:01:29.9]} 20... Qxc5 {[%clk 0:01:17.7]}
21. Kf2 {[%clk 0:01:30.7]} 21... Rfc8 {[%clk 0:01:13.6]} 22. Qd2 {[%clk
0:01:30.5]} 22... Nf6 {[%clk 0:01:12.2]} 23. Rfc1 {[%clk 0:01:29.8]} 23... Qe7
{[%clk 0:01:08.5]} 24. Na4 {[%clk 0:01:22.4]} 24... e5 {[%clk 0:00:59.2]} 25.
Qxa5 {[%clk 0:01:16.3]} 25... e4 {[%clk 0:00:57.4]} 26. Nc3 {[%clk 0:00:48.9]}
26... exf3 {[%clk 0:00:49.4]} 27. Nxd5 {[%clk 0:00:47.8]} 27... Ng4+ {[%clk
0:00:36.5]} 28. Kxf3 {[%clk 0:00:47.9]} 28... Nxh2+ {[%clk 0:00:36]} 29. Kg2
{[%clk 0:00:17.2]} 29... Qe4+ {[%clk 0:00:36]} 30. Kh3 {[%clk 0:00:17.8]} 30...
Nf3 {[%clk 0:00:30.1]} 31. Nc3 {[%clk 0:00:14]} 31... Rxc3 {[%clk 0:00:26.7]}
32. Qxc3 {[%clk 0:00:13]} 32... Ng5+ {[%clk 0:00:23.8]} 33. Kh2 {[%clk
0:00:13.2]} 33... Nf3+ {[%clk 0:00:22.6]} 34. Kh3 {[%clk 0:00:13.8]} 34... Ng5+
{[%clk 0:00:22]} 35. Kh2 {[%clk 0:00:13.8]} 35... Nf3+ {[%clk 0:00:22.1]} 36.
Kh3 {[%clk 0:00:14.5]} 1/2-1/2

[Event "Early-Titled-Tuesday-Blitz-April-02-2024"]
[Site "Chess.com"]
[Date "2024.04.02"]
[Round "6"]
[White "temus_galaktionov"]
[Black "Meri-Arabidze"]
[Result "1-0"]
[WhiteElo "2852"]
[BlackElo "2685"]
[TimeControl "180+1"]
[EndTime "9:06:15 PDT"]
[Termination "temus_galaktionov won by resignation"]

1. d4 {[%clk 0:03:00.9]} 1... Nf6 {[%clk 0:02:59.7]} 2. c4 {[%clk 0:02:57.8]}
2... e6 {[%clk 0:03:00.1]} 3. Nf3 {[%clk 0:02:55.9]} 3... Bb4+ {[%clk 0:03:00]}
4. Nbd2 {[%clk 0:02:55.8]} 4... O-O {[%clk 0:02:59.5]} 5. a3 {[%clk 0:02:56.5]}
5... Be7 {[%clk 0:02:59.8]} 6. e4 {[%clk 0:02:55]} 6... d6 {[%clk 0:03:00.1]} 7.
b4 {[%clk 0:02:53]} 7... e5 {[%clk 0:02:58.4]} 8. dxe5 {[%clk 0:02:50.5]} 8...
dxe5 {[%clk 0:02:58.4]} 9. Bb2 {[%clk 0:02:50.6]} 9... a5 {[%clk 0:02:36.4]} 10.
b5 {[%clk 0:02:48.8]} 10... Bg4 {[%clk 0:02:29.7]} 11. h3 {[%clk 0:02:41.4]}
11... Bh5 {[%clk 0:02:27.2]} 12. Qc2 {[%clk 0:02:40.3]} 12... Re8 {[%clk
0:02:11.8]} 13. g4 {[%clk 0:02:33.6]} 13... Bg6 {[%clk 0:02:11.4]} 14. Nxe5
{[%clk 0:02:33.6]} 14... Bc5 {[%clk 0:02:00.7]} 15. Nxg6 {[%clk 0:02:31.6]}
15... hxg6 {[%clk 0:02:00.2]} 16. Bg2 {[%clk 0:02:31.8]} 16... Bd4 {[%clk
0:01:28.6]} 17. O-O {[%clk 0:02:29.9]} 17... Bxb2 {[%clk 0:01:11.3]} 18. Qxb2
{[%clk 0:02:30.8]} 18... Qd3 {[%clk 0:01:10.2]} 19. Rae1 {[%clk 0:02:23.8]}
19... Nbd7 {[%clk 0:01:05.2]} 20. Re3 {[%clk 0:02:23.1]} 20... Qd6 {[%clk
0:01:00.8]} 21. f4 {[%clk 0:02:18.8]} 21... Qb6 {[%clk 0:00:51.8]} 22. Re1
{[%clk 0:02:16.4]} 22... Nc5 {[%clk 0:00:51.1]} 23. Kf1 {[%clk 0:02:04.9]} 23...
Rad8 {[%clk 0:00:50.3]} 24. Qc2 {[%clk 0:02:02.1]} 24... Ne6 {[%clk 0:00:46.4]}
25. f5 {[%clk 0:01:32.1]} 25... Nd4 {[%clk 0:00:40.4]} 26. Qc3 {[%clk
0:01:31.8]} 26... Re5 {[%clk 0:00:27]} 27. Nb3 {[%clk 0:01:29.9]} 27... Nxb3
{[%clk 0:00:21.3]} 28. Qxb3 {[%clk 0:01:12.3]} 28... Qd4 {[%clk 0:00:21.2]} 29.
Bf3 {[%clk 0:00:54.8]} 29... b6 {[%clk 0:00:20.3]} 30. Rd1 {[%clk 0:00:53.7]}
30... Qxd1+ {[%clk 0:00:10.9]} 31. Bxd1 {[%clk 0:00:54.6]} 31... Rd6 {[%clk
0:00:09.9]} 32. Bf3 {[%clk 0:00:53.3]} 32... Nd7 {[%clk 0:00:10]} 33. Qc3 {[%clk
0:00:50.8]} 33... g5 {[%clk 0:00:10.2]} 34. Rd3 {[%clk 0:00:49.9]} 34... Nc5
{[%clk 0:00:08.2]} 35. Rxd6 {[%clk 0:00:46.8]} 35... cxd6 {[%clk 0:00:09]} 36.
Qd4 {[%clk 0:00:47.1]} 36... f6 {[%clk 0:00:06.9]} 37. Qxd6 {[%clk 0:00:46.6]}
37... Na4 {[%clk 0:00:07.3]} 38. Qd1 {[%clk 0:00:39.8]} 38... Nc5 {[%clk
0:00:07]} 39. Qd8+ {[%clk 0:00:39.4]} 39... Kh7 {[%clk 0:00:07.5]} 40. Qxb6
{[%clk 0:00:40]} 1-0

[Event "Early-Titled-Tuesday-Blitz-April-02-2024"]
[Site "Chess.com"]
[Date "2024.04.02"]
[Round "6"]
[White "Flaccidmoves"]
[Black "Alexchess1984"]
[Result "0-1"]
[WhiteElo "2434"]
[BlackElo "2745"]
[TimeControl "180+1"]
[EndTime "9:06:16 PDT"]
[Termination "Alexchess1984 won by checkmate"]

1. Nf3 {[%clk 0:03:00.9]} 1... g6 {[%clk 0:02:51]} 2. e4 {[%clk 0:03:00.2]} 2...
c5 {[%clk 0:02:49.6]} 3. d4 {[%clk 0:02:58.4]} 3... cxd4 {[%clk 0:02:48.9]} 4.
Nxd4 {[%clk 0:02:58.9]} 4... Bg7 {[%clk 0:02:48.3]} 5. c4 {[%clk 0:02:59.2]}
5... Nc6 {[%clk 0:02:47.1]} 6. Be3 {[%clk 0:02:58.3]} 6... d6 {[%clk 0:02:46.3]}
7. Nc3 {[%clk 0:02:58.5]} 7... Nf6 {[%clk 0:02:45.9]} 8. Be2 {[%clk 0:02:58.9]}
8... O-O {[%clk 0:02:44.6]} 9. O-O {[%clk 0:02:58.9]} 9... Bd7 {[%clk
0:02:44.6]} 10. Qd2 {[%clk 0:02:58.6]} 10... Nxd4 {[%clk 0:02:44.1]} 11. Bxd4
{[%clk 0:02:59.5]} 11... Bc6 {[%clk 0:02:44.1]} 12. f3 {[%clk 0:03:00.1]} 12...
a5 {[%clk 0:02:43.8]} 13. Rab1 {[%clk 0:02:51]} 13... Nd7 {[%clk 0:02:40.7]} 14.
Be3 {[%clk 0:02:51.2]} 14... Nc5 {[%clk 0:02:39.5]} 15. b3 {[%clk 0:02:48.5]}
15... Qb6 {[%clk 0:02:38.3]} 16. Kh1 {[%clk 0:02:48.6]} 16... Qb4 {[%clk
0:02:35.8]} 17. Rfc1 {[%clk 0:02:35.2]} 17... a4 {[%clk 0:01:54.9]} 18. Nd5
{[%clk 0:02:27.4]} 18... Qxd2 {[%clk 0:01:51.3]} 19. Nxe7+ {[%clk 0:02:27.2]}
19... Kh8 {[%clk 0:01:51.3]} 20. Bxd2 {[%clk 0:02:27.8]} 20... axb3 {[%clk
0:01:49.3]} 21. axb3 {[%clk 0:02:27.5]} 21... Ra2 {[%clk 0:01:48.6]} 22. Rd1
{[%clk 0:02:17.4]} 22... Bxe4 {[%clk 0:01:18.8]} 23. fxe4 {[%clk 0:01:07.1]}
23... Nxe4 {[%clk 0:01:17]} 24. Bb4 {[%clk 0:01:07.6]} 24... Rxe2 {[%clk
0:01:11]} 25. Re1 {[%clk 0:00:54.6]} 25... Rxe1+ {[%clk 0:01:00]} 26. Rxe1
{[%clk 0:00:55.5]} 26... Nf2+ {[%clk 0:00:59.5]} 27. Kg1 {[%clk 0:00:51.1]}
27... Nd3 {[%clk 0:00:59.9]} 28. Rd1 {[%clk 0:00:41.4]} 28... Nxb4 {[%clk
0:00:58.1]} 29. Rxd6 {[%clk 0:00:42]} 29... h5 {[%clk 0:00:55.2]} 30. Rd7 {[%clk
0:00:41.5]} 30... b6 {[%clk 0:00:45.7]} 31. Kf1 {[%clk 0:00:34.9]} 31... Na6
{[%clk 0:00:43.7]} 32. Nd5 {[%clk 0:00:31.5]} 32... Nc5 {[%clk 0:00:42.4]} 33.
Rc7 {[%clk 0:00:26.9]} 33... Nxb3 {[%clk 0:00:42.1]} 34. Nxb6 {[%clk 0:00:26]}
34... Be5 {[%clk 0:00:35]} 35. Rc6 {[%clk 0:00:20]} 35... Bd4 {[%clk 0:00:34.3]}
36. Nd5 {[%clk 0:00:18.8]} 36... Re8 {[%clk 0:00:30.9]} 37. Rc7 {[%clk 0:00:17]}
37... Nd2# {[%clk 0:00:29.6]} 0-1

[Event "Early-Titled-Tuesday-Blitz-April-02-2024"]
[Site "Chess.com"]
[Date "2024.04.02"]
[Round "6"]
[White "KorolDimitriy75"]
[Black "Chernov_Alexander_A"]
[Result "1/2-1/2"]
[WhiteElo "2386"]
[BlackElo "2214"]
[TimeControl "180+1"]
[EndTime "9:06:20 PDT"]
[Termination "Game drawn by repetition"]

1. d4 {[%clk 0:03:00.9]} 1... Nf6 {[%clk 0:02:57.8]} 2. c4 {[%clk 0:03:01]} 2...
e6 {[%clk 0:02:57.5]} 3. Nc3 {[%clk 0:03:01.1]} 3... d5 {[%clk 0:02:55.3]} 4.
Bg5 {[%clk 0:03:00.2]} 4... Be7 {[%clk 0:02:54.4]} 5. cxd5 {[%clk 0:03:00.1]}
5... exd5 {[%clk 0:02:53.4]} 6. e3 {[%clk 0:03:00.3]} 6... O-O {[%clk
0:02:53.1]} 7. Bd3 {[%clk 0:03:00.3]} 7... c5 {[%clk 0:02:40.9]} 8. dxc5 {[%clk
0:02:38.5]} 8... Be6 {[%clk 0:02:30.2]} 9. Nf3 {[%clk 0:02:28.3]} 9... Bxc5
{[%clk 0:02:28.7]} 10. O-O {[%clk 0:02:28]} 10... h6 {[%clk 0:02:20.4]} 11. Bh4
{[%clk 0:02:27.3]} 11... Nc6 {[%clk 0:02:14]} 12. Rc1 {[%clk 0:02:27.1]} 12...
Be7 {[%clk 0:02:08.2]} 13. h3 {[%clk 0:02:19]} 13... Rc8 {[%clk 0:02:03.4]} 14.
Nb5 {[%clk 0:02:04.4]} 14... Qb6 {[%clk 0:01:39.2]} 15. Qe2 {[%clk 0:01:53.4]}
15... Rfe8 {[%clk 0:01:31.2]} 16. Bxf6 {[%clk 0:01:46.8]} 16... Bxf6 {[%clk
0:01:29.6]} 17. Nd6 {[%clk 0:01:46.7]} 17... Nd4 {[%clk 0:01:22.9]} 18. Nxd4
{[%clk 0:01:21.2]} 18... Qxd6 {[%clk 0:01:22.1]} 19. Qd2 {[%clk 0:01:03.6]}
19... g6 {[%clk 0:01:08.4]} 20. a3 {[%clk 0:01:02.2]} 20... Kg7 {[%clk
0:01:05.4]} 21. Rxc8 {[%clk 0:00:51.9]} 21... Rxc8 {[%clk 0:01:02.4]} 22. Rc1
{[%clk 0:00:52.8]} 22... Rxc1+ {[%clk 0:01:00.8]} 23. Qxc1 {[%clk 0:00:53.7]}
23... Bxd4 {[%clk 0:00:57.9]} 24. exd4 {[%clk 0:00:54.6]} 24... Qc6 {[%clk
0:00:53.9]} 25. Qxc6 {[%clk 0:00:53.1]} 25... bxc6 {[%clk 0:00:54]} 26. f4
{[%clk 0:00:38]} 26... Kf6 {[%clk 0:00:47.2]} 27. Kf2 {[%clk 0:00:36.4]} 27...
Ke7 {[%clk 0:00:45.6]} 28. b4 {[%clk 0:00:27.1]} 28... g5 {[%clk 0:00:28.9]} 29.
g4 {[%clk 0:00:20.4]} 29... f6 {[%clk 0:00:27.9]} 30. Kg3 {[%clk 0:00:17.8]}
30... Kd6 {[%clk 0:00:27.4]} 31. h4 {[%clk 0:00:17]} 31... Bd7 {[%clk
0:00:26.9]} 32. hxg5 {[%clk 0:00:12.4]} 32... hxg5 {[%clk 0:00:25.8]} 33. Kf3
{[%clk 0:00:12.6]} 33... Be6 {[%clk 0:00:25.1]} 34. Kg3 {[%clk 0:00:11.2]} 34...
Bd7 {[%clk 0:00:25.1]} 35. Kf3 {[%clk 0:00:10.5]} 35... Be6 {[%clk 0:00:25.3]}
36. Kg3 {[%clk 0:00:10.6]} 36... Bd7 {[%clk 0:00:25.4]} 1/2-1/2

[Event "Early-Titled-Tuesday-Blitz-April-02-2024"]
[Site "Chess.com"]
[Date "2024.04.02"]
[Round "6"]
[White "ActorXu"]
[Black "Macron20hTF1"]
[Result "1-0"]
[WhiteElo "2840"]
[BlackElo "2576"]
[TimeControl "180+1"]
[EndTime "9:06:21 PDT"]
[Termination "ActorXu won on time"]

1. e4 {[%clk 0:03:00.9]} 1... e6 {[%clk 0:02:59.2]} 2. d3 {[%clk 0:02:58.9]}
2... d5 {[%clk 0:03:00.1]} 3. Nd2 {[%clk 0:02:59.5]} 3... Nf6 {[%clk 0:03:00.3]}
4. Ngf3 {[%clk 0:02:59.7]} 4... Nc6 {[%clk 0:03:00.8]} 5. c3 {[%clk 0:02:58.1]}
5... dxe4 {[%clk 0:02:58.7]} 6. dxe4 {[%clk 0:02:58]} 6... e5 {[%clk 0:02:56.9]}
7. Be2 {[%clk 0:02:58.1]} 7... Bc5 {[%clk 0:02:53.8]} 8. O-O {[%clk 0:02:58.2]}
8... O-O {[%clk 0:02:53.4]} 9. b4 {[%clk 0:02:56.9]} 9... Bd6 {[%clk 0:02:54]}
10. Qc2 {[%clk 0:02:52.6]} 10... a5 {[%clk 0:02:54.2]} 11. b5 {[%clk 0:02:50.1]}
11... Ne7 {[%clk 0:02:54.7]} 12. Nc4 {[%clk 0:02:49.3]} 12... Ng6 {[%clk
0:02:54.9]} 13. Rd1 {[%clk 0:02:46.9]} 13... Qe7 {[%clk 0:02:51.3]} 14. Nxd6
{[%clk 0:02:41.8]} 14... cxd6 {[%clk 0:02:51.6]} 15. a4 {[%clk 0:02:41.4]} 15...
Be6 {[%clk 0:02:24.5]} 16. c4 {[%clk 0:02:35.7]} 16... Rac8 {[%clk 0:02:18.3]}
17. Be3 {[%clk 0:02:33.6]} 17... Nd7 {[%clk 0:02:13.4]} 18. Nd2 {[%clk
0:02:25.5]} 18... f5 {[%clk 0:02:12.8]} 19. exf5 {[%clk 0:02:24.5]} 19... Bxf5
{[%clk 0:02:12]} 20. Bd3 {[%clk 0:02:23.8]} 20... Bg4 {[%clk 0:01:46.1]} 21. f3
{[%clk 0:02:16.5]} 21... Be6 {[%clk 0:01:45.9]} 22. Bxg6 {[%clk 0:02:12.2]}
22... hxg6 {[%clk 0:01:46.8]} 23. Qxg6 {[%clk 0:02:12.3]} 23... Bf5 {[%clk
0:01:12.9]} 24. Bg5 {[%clk 0:01:57.8]} 24... Qf7 {[%clk 0:01:01.2]} 25. Qxd6
{[%clk 0:01:53]} 25... Nc5 {[%clk 0:00:50.5]} 26. Qxe5 {[%clk 0:01:47.3]} 26...
Rfe8 {[%clk 0:00:49.5]} 27. Qg3 {[%clk 0:01:43.6]} 27... Bc2 {[%clk 0:00:16.5]}
28. Re1 {[%clk 0:01:41.5]} 28... Nd3 {[%clk 0:00:08.2]} 29. Rxe8+ {[%clk
0:01:28.5]} 29... Rxe8 {[%clk 0:00:09.1]} 30. h4 {[%clk 0:01:21.1]} 30... Re2
{[%clk 0:00:08.5]} 31. Kh2 {[%clk 0:01:07.8]} 31... Qe6 {[%clk 0:00:06.5]} 32.
Ne4 {[%clk 0:00:51.4]} 32... Ne5 {[%clk 0:00:05.9]} 33. Nc3 {[%clk 0:00:38.1]}
33... Qxc4 {[%clk 0:00:01.3]} 34. Nxe2 {[%clk 0:00:37.5]} 34... Qxe2 {[%clk
0:00:01.7]} 35. h5 {[%clk 0:00:32.3]} 1-0

[Event "Early-Titled-Tuesday-Blitz-April-02-2024"]
[Site "Chess.com"]
[Date "2024.04.02"]
[Round "6"]
[White "NowInChess"]
[Black "Mazarini41"]
[Result "1-0"]
[WhiteElo "2262"]
[BlackElo "2451"]
[TimeControl "180+1"]
[EndTime "9:06:22 PDT"]
[Termination "NowInChess won on time"]

1. e4 {[%clk 0:03:00.9]} 1... c5 {[%clk 0:02:56.8]} 2. d3 {[%clk 0:03:01]} 2...
g6 {[%clk 0:02:56.7]} 3. g3 {[%clk 0:03:01.4]} 3... Bg7 {[%clk 0:02:56.9]} 4.
Bg2 {[%clk 0:03:02.1]} 4... Nc6 {[%clk 0:02:55.9]} 5. f4 {[%clk 0:03:02.3]} 5...
e6 {[%clk 0:02:45.2]} 6. Nf3 {[%clk 0:03:02.3]} 6... Nge7 {[%clk 0:02:45.1]} 7.
O-O {[%clk 0:03:01.7]} 7... O-O {[%clk 0:02:45.3]} 8. c3 {[%clk 0:03:00.8]} 8...
d6 {[%clk 0:02:36.4]} 9. Be3 {[%clk 0:02:59.1]} 9... b5 {[%clk 0:02:14.7]} 10.
d4 {[%clk 0:02:57.3]} 10... cxd4 {[%clk 0:02:08.4]} 11. cxd4 {[%clk 0:02:58.2]}
11... d5 {[%clk 0:01:57.2]} 12. e5 {[%clk 0:02:57.7]} 12... Nf5 {[%clk
0:01:55.3]} 13. Bf2 {[%clk 0:02:57.9]} 13... h5 {[%clk 0:01:46.9]} 14. Nc3
{[%clk 0:02:56.4]} 14... b4 {[%clk 0:01:38.4]} 15. Na4 {[%clk 0:02:54.4]} 15...
a5 {[%clk 0:01:24.4]} 16. Rc1 {[%clk 0:02:50.7]} 16... Bd7 {[%clk 0:01:11.4]}
17. Nc5 {[%clk 0:02:44.7]} 17... Qe7 {[%clk 0:01:01]} 18. h3 {[%clk 0:02:36.8]}
18... Rfc8 {[%clk 0:00:51.7]} 19. g4 {[%clk 0:02:19.1]} 19... hxg4 {[%clk
0:00:49.6]} 20. hxg4 {[%clk 0:02:20]} 20... Nh6 {[%clk 0:00:48]} 21. Bh4 {[%clk
0:02:11.4]} 21... Qe8 {[%clk 0:00:41]} 22. Bh3 {[%clk 0:02:00.3]} 22... Rc7
{[%clk 0:00:39.9]} 23. Bf6 {[%clk 0:01:42.5]} 23... Rac8 {[%clk 0:00:23.8]} 24.
Qd2 {[%clk 0:01:25.8]} 24... Bxf6 {[%clk 0:00:21.1]} 25. exf6 {[%clk 0:01:25]}
25... Qf8 {[%clk 0:00:13.6]} 26. Nxd7 {[%clk 0:01:17.7]} 26... Rxd7 {[%clk
0:00:13.1]} 27. Ne5 {[%clk 0:01:13.6]} 27... Nxe5 {[%clk 0:00:06.9]} 28. Rxc8
{[%clk 0:01:05.2]} 28... Qxc8 {[%clk 0:00:06.5]} 29. fxe5 {[%clk 0:01:05.4]}
29... Qf8 {[%clk 0:00:03.9]} 30. Rc1 {[%clk 0:00:51.8]} 30... Rb7 {[%clk
0:00:02.7]} 31. Rc6 {[%clk 0:00:42.3]} 31... a4 {[%clk 0:00:02.5]} 32. Qc1
{[%clk 0:00:42.1]} 32... b3 {[%clk 0:00:02.4]} 33. Rc8 {[%clk 0:00:32.4]} 33...
Rb8 {[%clk 0:00:02.2]} 34. Rxf8+ {[%clk 0:00:31.8]} 34... Rxf8 {[%clk
0:00:02.4]} 35. Qxh6 {[%clk 0:00:30.5]} 1-0

[Event "Early-Titled-Tuesday-Blitz-April-02-2024"]
[Site "Chess.com"]
[Date "2024.04.02"]
[Round "6"]
[White "Misterfox120"]
[Black "AlexanderKing"]
[Result "0-1"]
[WhiteElo "2407"]
[BlackElo "2620"]
[TimeControl "180+1"]
[EndTime "9:06:24 PDT"]
[Termination "AlexanderKing won by resignation"]

1. d4 {[%clk 0:03:00.9]} 1... d5 {[%clk 0:03:00.1]} 2. Nc3 {[%clk 0:02:57.7]}
2... Nf6 {[%clk 0:02:59.4]} 3. Bf4 {[%clk 0:02:56.9]} 3... a6 {[%clk 0:02:59.8]}
4. e3 {[%clk 0:02:55.9]} 4... e6 {[%clk 0:03:00.2]} 5. g4 {[%clk 0:02:52.8]}
5... c5 {[%clk 0:02:56.7]} 6. g5 {[%clk 0:02:48.2]} 6... Nfd7 {[%clk 0:02:52.4]}
7. Nf3 {[%clk 0:02:45.7]} 7... Nc6 {[%clk 0:02:50.7]} 8. h4 {[%clk 0:02:30.8]}
8... b5 {[%clk 0:02:43.4]} 9. Bh3 {[%clk 0:02:17.2]} 9... Nb6 {[%clk 0:02:10.3]}
10. h5 {[%clk 0:02:05.4]} 10... cxd4 {[%clk 0:01:56.4]} 11. Nxd4 {[%clk
0:01:52.3]} 11... Bb7 {[%clk 0:01:45.5]} 12. g6 {[%clk 0:00:47.5]} 12... e5
{[%clk 0:01:00.8]} 13. Nxc6 {[%clk 0:00:37.4]} 13... Bxc6 {[%clk 0:01:01.7]} 14.
gxf7+ {[%clk 0:00:35]} 14... Kxf7 {[%clk 0:01:00.5]} 15. Bxe5 {[%clk 0:00:35.9]}
15... d4 {[%clk 0:00:56.9]} 16. Qg4 {[%clk 0:00:29]} 16... Qe7 {[%clk
0:00:38.9]} 17. Qf4+ {[%clk 0:00:13.2]} 17... Ke8 {[%clk 0:00:37.3]} 18. Bxd4
{[%clk 0:00:09.5]} 18... Bxh1 {[%clk 0:00:16.1]} 19. Bxb6 {[%clk 0:00:09.5]}
19... Qd6 {[%clk 0:00:16.8]} 20. Qf5 {[%clk 0:00:02.4]} 20... g6 {[%clk
0:00:16.9]} 21. hxg6 {[%clk 0:00:01.7]} 21... hxg6 {[%clk 0:00:17.8]} 22. Qg4
{[%clk 0:00:02]} 22... Be7 {[%clk 0:00:08.8]} 23. Bd4 {[%clk 0:00:02]} 23... Rh4
{[%clk 0:00:09.4]} 24. Qg3 {[%clk 0:00:01.1]} 24... Qxg3 {[%clk 0:00:09.4]} 25.
fxg3 {[%clk 0:00:02]} 25... Rxh3 {[%clk 0:00:10.3]} 26. Kf2 {[%clk 0:00:02]}
26... Bc6 {[%clk 0:00:08.9]} 27. Rg1 {[%clk 0:00:01.7]} 27... Rh2+ {[%clk
0:00:07.7]} 28. Ke1 {[%clk 0:00:02.6]} 28... Rh1 {[%clk 0:00:08.1]} 29. Rxh1
{[%clk 0:00:03]} 29... Bxh1 {[%clk 0:00:09]} 0-1